{"text_format":"1","workbook":"xlsx","n_sheets":2,"sheets":["Budget_Parcours","Instructions"],"not_rendered":{"charts":0,"images":0,"macros":0,"external_links":0,"defined_names":2,"comments":0,"pivot_tables":0},"unopened":[],"bounds":{"document_bytes":16777216,"sheet_cells":100000,"rows_first":2000,"rows_last":500,"rows_between":2000,"halvings":0,"cell_chars":16384,"cell_head_chars":4096},"cells_cut":0,"cells_raw":0,"read":"whole","date_system":"1900"}

{"sheet":"Budget_Parcours","index":0,"n_rows":48,"n_cols":9,"rows_kept":48,"cut":false,"hidden":false,"merged":[[0,0,0,8],[34,0,34,6],[35,0,35,6],[36,0,36,6]]}
["Budget de la demande de subvention - Parcours Exploration"]
["Titre du projet:"]
["Organisation:"]
["Nature de la dépense","Description de la dépense","Coût unitaire","Unité","Unité","Unité","Taxes (100 % des taxes)","Montant demandé","Montant proposé"]
["Dépenses principales"]
["Honoraires professionnels (consultation scénarisation, élaboration ou adaptation de contenus, validation, réalisation, direction artistique, actrices et acteurs, captation, photographie, montage, pré-production, production, post-production, mixage sonore, graphisme, révision linguistique, développement ou mise à jour d'un site Internet, intégration Web, marketing, diffusion, animation, configuration de l'évaluation et ses outils, mesure, évaluation)",null,null,null,null,null,{"$f":"0.14975*(C6*D6*E6*F6)","v":0},{"$f":"+C6*D6*E6*F6","v":0},{"$f":"+C6*D6*E6*F6","v":0}]
["Salaire de base des expertes et experts de métier libérés par les entreprises pour participer au projet",null,null,null,null,null,{"$f":"0.14975*(C7*D7*E7*F7)","v":0},{"$f":"+C7*D7*E7*F7","v":0},{"$f":"+C7*D7*E7*F7","v":0}]
["Autres frais (préciser)",null,null,null,null,null,{"$f":"0.14975*(C8*D8*E8*F8)","v":0},{"$f":"+C8*D8*E8*F8","v":0},0]
["Autres dépenses liées à la réalisation du projet "]
["Droits musicaux",null,null,null,null,null,{"$f":"0.14975*(C10*D10*E10*F10)","v":0},{"$f":"+C10*D10*E10*F10","v":0},0]
["Frais liés à l'achat d'une licence d'un matériel informatique nécessaire au projet",null,null,null,null,null,0,0,0]
["Frais liés à l'utilisation d'une plateforme Web nécessaire au projet",null,null,null,null,null,0,0,0]
["Inscriptions à des salons, foires",null,null,null,null,null,0,0,0]
["Location de salle incluant le matériel audiovisuel pour une activité de promotion",null,null,null,null,null,0,0,0]
["Location ou achat d'équipements pour une activité de promotion du projet",null,null,null,null,null,0,0,0]
["Frais engagés pour l’achat ou l’adaptation de matériel selon la nature du handicap de la personne participant à une activité de promotion",null,null,null,null,null,0,0,0]
["Frais d'impression du matériel promotionnel",null,null,null,null,null,0,0,0]
["Frais postaux et frais de livraison du matériel promotionnel",null,null,null,null,null,0,0,0]
["Frais d'installation du matériel promotionnel",null,null,null,null,null,0,0,0]
["Frais de placement publicitaire et relations médias",null,null,null,null,null,0,0,0]
["Référencement du matériel promotionnel produit",null,null,null,null,null,0,0,0]
["Honoraires professionnels d'interprètes pour les activités ayant pour participantes des personnes malentendantes",null,null,null,null,null,0,0,0]
["Honoraires professionnels d’accompagnatrice ou d’accompagnateur pour la réalisation d’activités de promotion destinées à une personne en siutation de handicap",null,null,null,null,null,0,0,0]
["Autres frais (préciser)",null,null,null,null,null,0,0,0]
["Déplacement, hébergement et repas du personnel de l'organisme"]
["Frais de déplacement ",null,null,null,null,null,null,0,0]
["Frais d'hébergement ",null,null,null,null,null,0,0,0]
["Frais de repas ",null,null,null,null,null,null,0,0]
["Déplacement, hébergement et repas des ressources externes à l'organisme"]
["Frais de déplacement ",null,null,null,null,null,null,{"$f":"+C30*D30*E30*F30","v":0},{"$f":"+C30*D30*E30*F30","v":0}]
["Frais d'hébergement ",null,null,null,null,null,{"$f":"0.14975*(C31*D31*E31*F31)","v":0},{"$f":"+C31*D31*E31*F31","v":0},{"$f":"+C31*D31*E31*F31","v":0}]
["Frais de repas ",null,null,null,null,null,null,{"$f":"+C32*D32*E32*F32","v":0},{"$f":"+C32*D32*E32*F32","v":0}]
["Dépenses liées à la coordination et la réalisation du projet par l'organisation responsable du projet"]
["Salaire et charges sociales du ou des personnes responsables du projet et du soutien administratif en lien avec le projet",null,null,null,null,null,null,{"$f":"+C34*D34*E34*F34","v":0},{"$f":"+C34*D34*E34*F34","v":0}]
["Remboursement de 50 % des taxes admissibles",null,null,null,null,null,null,{"$f":"0.5*SUM(G6:G34)","v":0},{"$f":"0.5*SUM(G6:G34)","v":0}]
["Total partiel",null,null,null,null,null,null,{"$f":"SUM(H6:H35)","v":0},{"$f":"SUM(I6:I35)","v":0}]
["Frais d'administration (maximum 10 % de la subvention versée, sur présentation de pièces justificatives)",null,null,null,null,null,null,{"$f":"+H36*0.1","v":0},{"$f":"+I36*0.1","v":0}]
["Montant demandé ",null,null,null,null,null,null,{"$f":"H36+H37","v":0},{"$f":"I36+I37","v":0}]
["Nature du revenu","Description du revenu","Revenu unitaire","Unité","Unité","Unité","Taxes (100 % des taxes)","Montant "]
["Contribution financière de l'organiation responsable du projet"]
[null,null,null,null,null,null,null,{"$f":"+C41*D41*E41*F41","v":0}]
["Contribution financière du ou des partenaires"]
[null,null,null,null,null,null,null,{"$f":"+C43*D43*E43*F43","v":0}]
[null,null,null,null,null,null,null,0]
["Autres revenus"]
[null,null,null,null,null,null,null,{"$f":"+C46*D46*E46*F46","v":0}]
[null,null,null,null,null,null,null,{"$f":"+C47*D47*E47*F47","v":0}]
["Total des revenus",null,null,null,null,null,null,{"$f":"SUM(H41:H47)","v":0}]

{"sheet":"Instructions","index":1,"n_rows":36,"n_cols":1,"rows_kept":36,"cut":false,"hidden":false,"merged":[[21,0,21,10],[17,0,17,10],[25,0,25,10],[22,0,22,10],[7,0,7,10],[6,0,6,10],[16,0,16,10],[20,0,20,10],[18,0,18,10],[19,0,19,10],[8,0,8,10],[10,0,10,10],[11,0,11,10],[12,0,12,10],[14,0,14,10],[13,0,13,10],[15,0,15,10],[0,0,0,10],[1,0,1,10],[3,0,3,10],[5,0,5,10],[36,0,36,10],[23,0,23,10],[26,0,26,10],[32,0,32,10],[34,0,34,10],[35,0,35,10],[27,0,27,10],[28,0,28,10],[24,0,24,10],[29,0,29,10],[30,0,30,10],[31,0,31,10]]}
["Budget de la demande de subvention"]
["- Instructions -"]
[]
["1. Barèmes du programme "]
[]
["Honoraires professionnels et salaires incluant les charges sociales: selon la complexité des travaux à accomplir, le remboursement des dépenses pourrait atteindre 150 $ l’heure."]
["Frais de déplacement et d’hébergement: selon ce qui est le plus économique, le domicile ou le lieu de travail est déterminé comme point de départ de ce déplacement (0,465 $/km)."]
[]
["2. Instructions pour compléter le budget de la demande de subvention"]
[]
["Colonne Nature de la dépense "]
["Les dépenses admissibles sont présentées par catégorie (dépenses principales, autres dépenses liées à la réalisation du projet, déplacement, hébergement, repas et dépenses liées à la gestion du projet par l'organisation). Il est important de ne pas changer l'appellation des postes budgétaires."]
["Veuillez compléter seulement les lignes pour les postes budgétaires visés par votre demande de subvention. "]
[]
["Colonne Description de la dépense "]
["Décrire le détail des calculs en utilisant les unités de mesure appropriées. Voici des exemples:"]
[]
["Honoraires professionnels : 90 $/h x 16 h x 2 tournages"]
["Salaire de base des expertes et experts de métier: 19,65 $/h x 16 h x 4 expertes et experts de métier"]
["Déplacement de l'équipe de tournage: 0,52 $/km x 600 km x 2 déplacements"]
[]
["Colonne Coût unitaire"]
["Inscrire le premier facteur de la multiplication présenté dans la colonne Description de la dépense pour chaque catégorie de dépense (Ex:  taux horaire, coût/personne pour le matériel, coût/km pour les frais de déplacement, le coût/nuit pour les frais d'hébergement, coût/heure pour la location de salle, etc.). C'est le coût unitaire en $."]
[]
["Colonnes Unité"]
["Inscrire les autres facteurs de multiplication. Pour les cases vides, inscrire le chiffre 1."]
[]
["Colonne Taxes (100 % des taxes)"]
["Les taxes sont calculées automatiquement pour les dépenses taxables. La portion remboursable des taxes (50 %) est calculée automatiquement à la ligne Remboursement de 50 % des taxes admissibles."]
["Colonne Nature du revenu"]
["Utiliser les catégories de revenus identifiées ou inscrire les catégories de revenu. "]
["Colonne Description du revenu"]
["Par exemple, salaire et charges sociales payés par des fonds publics, salles offertes par les partenaires, utilisation des équipements de partenaires, etc."]
[]
["Colonne Montant demandé"]
["Le montant demandé est calculé automatiquement en tenant compte du taux de remboursement applicable."]